bitfinex/quotes_SOLUSD_20250903
["timestamp","ask_amount","ask_price","bid_price","bid_amount"]
[1756894073331,4.48509999,209.38,209.37,17.5]
[1756894074854,13.65559401,209.4,209.39,17.5]
[1756894075018,4.54509999,209.4,209.39,18.19]
[1756894076147,9.32064917,209.4,209.39,17.5]
[1756894076443,0.06,209.4,209.39,17.5]
[1756894076681,4.54509999,209.4,209.39,17.5]
[1756894076815,9.32064917,209.4,209.39,17.5]
[1756894078533,0.06,209.4,209.39,17.5]
[1756894078731,4.54509999,209.4,209.39,18.19]
[1756894079033,0.06,209.4,209.39,18.19]
[1756894081155,0.06,209.4,209.39,22.96577725]
[1756894081346,0.06,209.4,209.39,27.45087724]
[1756894085945,0.06,209.4,209.39,22.96577725]
[1756894086133,0.06,209.4,209.39,27.45087724]
[1756894088548,0.06,209.4,209.39,27.48087724]
[1756894090755,0.06,209.42,209.41,47.98509999]
[1756894091052,0.06,209.42,209.41,85.44509999]
[1756894091240,0.06,209.42,209.41,86.13509999]
[1756894091747,0.06,209.42,209.41,88.04847207]
[1756894092833,0.06,209.42,209.41,92.82379321]
[1756894093453,0.06,209.42,209.41,55.36379321]
[1756894093661,0.06,209.42,209.41,92.82379321]
[1756894095937,1e-08,209.43,209.41,106.41938722]
[1756894096135,1e-08,209.43,209.42,18.740694]
[1756894096340,0.06,209.48,209.47,17.5]
[1756894096535,0.06,209.48,209.47,54.94]
[1756894096846,0.06,209.48,209.47,60.08509999]
[1756894097168,0.06,209.48,209.47,86.08509999]
[1756894098054,1e-08,209.48,209.47,104.45464731]
[1756894099770,1e-08,209.48,209.47,106.36728747]
[1756894102342,1e-08,209.48,209.47,186.06728747]
[1756894103839,1e-08,209.48,209.47,160.06728747]
[1756894106546,1e-08,209.48,209.47,160.35161061]
[1756894109366,1e-08,209.48,209.47,160.04728747]
[1756894109668,1e-08,209.48,209.47,158.42823815]
[1756894109965,1e-08,209.48,209.47,144.83264414]
[1756894110163,1e-08,209.48,209.47,107.41264414]
[1756894110384,1e-08,209.48,209.47,144.83264414]
[1756894111773,1e-08,209.48,209.47,107.41264414]
[1756894111975,1e-08,209.48,209.47,144.83264414]
[1756894112571,1e-08,209.48,209.47,103.88659347]
[1756894112761,0.68000001,209.48,209.47,104.84000398]
[1756894112957,0.68000001,209.48,209.47,142.26000398]
[1756894113671,1e-08,209.48,209.47,142.26000398]
[1756894114373,1e-08,209.48,209.47,62.56000398]
[1756894116577,1e-08,209.48,209.47,25.14000398]
[1756894116770,1e-08,209.48,209.47,17.5]
[1756894116771,0.68000001,209.48,209.47,17.5]
[1756894116949,0.68000001,209.48,209.47,54.9]
[1756894118571,0.68000001,209.48,209.47,59.67395331]
[1756894118982,0.68000001,209.48,209.47,62.60000398]
[1756894119677,0.68000001,209.48,209.47,57.82605067]
[1756894120383,0.68000001,209.48,209.47,20.42605067]
[1756894120561,0.68000001,209.48,209.47,57.82605067]
[1756894120955,0.68000001,209.48,209.47,62.60000398]
[1756894122271,0.68000001,209.48,209.47,57.82605067]
[1756894122971,0.68000001,209.48,209.47,57.85605067]
[1756894124269,0.68000001,209.48,209.47,54.93]
[1756894127677,1e-08,209.48,209.47,59.70395331]
[1756894127871,1e-08,209.48,209.47,63.24000398]
[1756894128079,1e-08,209.48,209.47,66.10605465]
[1756894129079,1e-08,209.48,209.47,63.24000398]
[1756894129385,1e-08,209.48,209.47,66.10605465]
[1756894134085,1e-08,209.48,209.47,145.80605465]
[1756894134270,1e-08,209.48,209.47,159.40164866]
[1756894138303,1e-08,209.51,209.5,57.37991715]
[1756894138514,1e-08,209.51,209.5,97.62596782]
[1756894138672,1e-08,209.51,209.5,109.7601705]
[1756894138993,1e-08,209.51,209.5,105.0545384]
[1756894140373,1e-08,209.51,209.5,55.70184026]
[1756894140595,1e-08,209.51,209.5,95.94789093]
[1756894141701,1e-08,209.51,209.5,58.56789093]
[1756894141872,1e-08,209.51,209.5,95.94789093]
[1756894142874,1e-08,209.51,209.5,109.82780808]
[1756894143301,0.2,209.58,209.56,26.0]
[1756894143485,1e-08,209.58,209.57,54.88]
[1756894143692,1e-08,209.58,209.57,57.74605067]
[1756894143991,1e-08,209.59,209.58,16.74596782]
[1756894144184,1e-08,209.59,209.58,17.41596782]
[1756894144581,1e-08,209.59,209.58,22.18741547]
[1756894147682,0.06,209.64,209.61,31.09559401]
[1756894147881,0.06,209.64,209.61,71.32164468]
[1756894148100,0.06,209.64,209.61,71.99164468]
[1756894148290,0.06,209.64,209.61,73.90300533]
[1756894148695,0.06,209.64,209.61,78.67377008]
[1756894149004,0.06,209.64,209.61,27.04817607]
[1756894149187,0.06,209.64,209.61,64.40817607]
[1756894149600,0.06,209.64,209.61,65.07817607]
[1756894149892,0.06,209.64,209.61,144.77817607]
[1756894152209,0.06,209.64,209.63,43.5]
[1756894152504,0.06,209.64,209.63,163.40605067]
[1756894152892,0.06,209.64,209.63,165.31741132]
[1756894153186,0.06,209.64,209.63,170.08772091]
[1756894154604,0.06,209.64,209.63,170.77772091]
[1756894155806,0.06,209.64,209.63,170.08772091]
[1756894156581,0.06,209.64,209.63,167.22167024]
[1756894156780,0.06,209.64,209.63,170.08772091]
[1756894156977,0.76,209.64,209.63,129.88167024]
[1756894157192,0.76,209.64,209.63,170.08772091]
[1756894157404,0.76,209.64,209.63,167.22167024]
[1756894158903,0.76,209.64,209.63,129.88167024]
[1756894159086,0.76,209.64,209.63,167.22167024]
[1756894159603,3.62605067,209.64,209.63,134.54]
[1756894159976,3.62605067,209.64,209.63,97.2]
[1756894160180,3.62605067,209.64,209.63,134.54]
[1756894160579,3.62605067,209.64,209.63,97.2]
[1756894160788,3.62605067,209.64,209.63,17.5]
[1756894160998,8.39613271,209.64,209.63,17.5]
[1756894163990,3.62605067,209.64,209.63,17.5]
[1756894164387,8.39613271,209.64,209.63,17.5]
[1756894164698,3.62605067,209.64,209.63,17.5]
[1756894166611,8.39613271,209.64,209.63,17.5]
[1756894167407,0.06,209.64,209.63,54.84]
[1756894167611,2.92605067,209.64,209.63,54.84]
[1756894167791,2.92605067,209.64,209.63,63.23613271]
[1756894167991,0.06,209.64,209.63,68.0064423]
[1756894168521,0.06,209.64,209.63,63.23613271]
[1756894168689,0.06,209.64,209.63,68.0064423]
[1756894169707,0.06,209.64,209.63,63.23613271]
[1756894170606,4.53448263,209.64,209.63,63.21613271]
[1756894170815,5.23448263,209.64,209.63,25.89613271]
[1756894171001,28.07464131,209.64,209.63,25.89613271]
[1756894171314,13.59559401,209.63,209.62,17.5]
[1756894171491,18.07007664,209.63,209.62,17.5]
[1756894171698,18.77007664,209.63,209.62,17.5]
[1756894172193,18.77007664,209.63,209.56,37.32]
[1756894172194,18.77007664,209.63,209.6,17.5]
[1756894172400,4.47448263,209.61,209.6,17.5]
[1756894172603,5.17448263,209.61,209.6,17.5]
[1756894172914,9.94524738,209.61,209.6,17.5]
[1756894173896,9.94524738,209.61,209.58,17.5]
[1756894174099,4.47448263,209.59,209.58,17.5]
[1756894174513,9.94570263,209.59,209.58,17.5]
[1756894176016,23.54129664,209.59,209.58,17.5]
[1756894176418,13.59559401,209.58,209.57,0.03]
[1756894176629,22.84152429,209.58,209.57,0.03]
[1756894176799,37.89044215,209.58,209.57,0.03]
[1756894177904,0.28432314,209.57,209.55,17.5]
[1756894178104,0.28432314,209.54,209.53,17.5]
[1756894178309,19.05439978,209.54,209.53,17.5]
[1756894178719,23.82675827,209.54,209.53,17.5]
[1756894182104,23.82675827,209.54,209.51,17.5]
[1756894182411,22.54455927,209.52,209.5,0.03]
[1756894182597,4.47448263,209.51,209.5,0.03]
[1756894183209,4.77242824,209.54,209.5,0.74]
[1756894183406,13.59559401,209.55,209.53,17.5]
[1756894183609,26.28432314,209.55,209.53,18.21]
[1756894183806,4.47448263,209.54,209.53,18.21]
[1756894184004,4.47448263,209.54,209.53,17.5]
[1756894189129,4.47448263,209.54,209.53,18.21]
[1756894190839,4.47448263,209.55,209.53,22.98258626]
[1756894191126,4.47448263,209.56,209.55,17.5]
[1756894191308,4.47448263,209.56,209.55,18.21]
[1756894191711,4.47448263,209.56,209.55,17.5]
[1756894193527,4.47448263,209.56,209.55,18.21]
[1756894195334,4.53448263,209.57,209.55,18.21]
[1756894195535,4.53448263,209.57,209.56,0.71]
[1756894198021,4.53448263,209.57,209.55,17.5]
[1756894198318,4.47448263,209.56,209.55,17.5]
[1756894198733,4.47448263,209.56,209.55,18.21]
[1756894199123,0.06,209.57,209.55,22.98204229]
[1756894199318,0.06,209.57,209.56,0.71]
[1756894200316,4.53448263,209.57,209.56,0.71]
[1756894200720,0.06,209.57,209.56,0.71]
[1756894200923,0.06,209.6,209.56,9.95638566]
[1756894201214,0.06,209.6,209.59,17.5]
[1756894201626,0.06,209.6,209.59,18.21]
[1756894203447,0.06,209.6,209.59,22.98122]
[1756894206340,0.06,209.6,209.59,27.45570263]
[1756894206757,0.06,209.62,209.61,43.5]
[1756894206917,0.06,209.64,209.63,17.5]
[1756894207127,0.06,209.64,209.63,21.97448263]
[1756894207437,0.06,209.64,209.63,18.21]
[1756894208441,0.06,209.64,209.63,22.98030959]
[1756894209059,0.06,209.64,209.63,27.45479222]
[1756894209641,0.06,209.64,209.63,22.98030959]
[1756894211944,0.06,209.64,209.63,54.8]
[1756894212667,0.06,209.64,209.63,59.57030959]
[1756894212866,0.06,209.64,209.63,60.27030959]
[1756894213066,0.06,209.64,209.63,64.74479222]
[1756894219977,0.06,209.64,209.63,22.27030959]
[1756894220279,0.06,209.64,209.63,59.55030959]
[1756894220441,0.06,209.64,209.63,22.27030959]
[1756894220642,0.06,209.64,209.63,59.55030959]
[1756894225173,0.06,209.64,209.63,17.5]
[1756894225174,5.24448263,209.64,209.63,17.5]
[1756894225358,5.24448263,209.64,209.63,54.78]
[1756894225868,5.24448263,209.64,209.63,17.5]
[1756894228661,4.53448263,209.64,209.63,17.5]
[1756894229444,5.24448263,209.64,209.63,17.5]
[1756894230670,0.28432314,209.63,209.62,0.03]
[1756894230867,18.35439978,209.63,209.62,0.03]
[1756894231164,23.83470937,209.63,209.62,0.03]
[1756894231542,22.22691243,209.63,209.62,0.03]
[1756894232550,34.15268641,209.63,209.59,0.03]
[1756894232749,16.4622797,209.6,209.59,0.03]
[1756894233157,17.1722797,209.6,209.59,0.03]
[1756894234361,17.45660284,209.6,209.59,0.03]
[1756894234870,22.2275952,209.6,209.59,0.03]
[1756894235262,39.59559401,209.57,209.56,0.03]
[1756894235577,42.74660284,209.57,209.56,0.03]
[1756894235778,0.28432314,209.55,209.53,0.03]
[1756894235958,3.15100883,209.54,209.53,0.03]
[1756894236162,3.86100883,209.54,209.53,0.03]
[1756894237259,7.92336732,209.54,209.53,0.03]
[1756894237669,8.63336732,209.54,209.53,0.03]
[1756894237861,3.15100883,209.54,209.53,0.03]
[1756894238562,7.92336732,209.54,209.53,0.03]
[1756894238783,8.63336732,209.54,209.53,0.03]
[1756894238982,22.22896133,209.54,209.53,0.03]
[1756894240569,21.51896133,209.54,209.53,0.03]
[1756894241280,22.22896133,209.54,209.53,0.03]
[1756894242586,22.22896133,209.54,209.53,17.53]
[1756894242765,21.51896133,209.54,209.53,17.53]
[1756894243086,22.23896133,209.54,209.53,0.03]
[1756894243785,26.0,209.55,209.53,0.7]
[1756894243960,2.86668569,209.54,209.53,0.7]
[1756894244300,13.59559401,209.58,209.56,17.5]
[1756894244784,18.36704166,209.58,209.56,17.5]
[1756894244986,19.08704166,209.58,209.56,17.5]
[1756894245366,2.86668569,209.57,209.56,17.5]
[1756894245571,17.1822797,209.57,209.56,17.5]
[1756894245987,13.59559401,209.56,209.54,17.5]
[1756894246206,13.59559401,209.54,209.53,0.03]
[1756894246376,16.4622797,209.54,209.53,0.03]
[1756894246577,24.82132388,209.54,209.53,0.03]
[1756894246880,24.82132388,209.54,209.51,0.03]
[1756894247082,19.32896539,209.52,209.51,0.03]
[1756894247487,19.61328853,209.52,209.51,0.03]
[1756894248099,20.33328853,209.52,209.51,0.03]
[1756894248691,25.10610258,209.52,209.51,0.03]
[1756894249080,33.70615965,209.52,209.51,0.03]
[1756894249334,13.59559401,209.51,209.5,0.03]
[1756894249510,16.4622797,209.51,209.5,0.03]
[1756894251073,22.23964469,209.51,209.5,0.03]
[1756894251673,0.28432314,209.5,209.48,17.53]
[1756894251879,16.4622797,209.49,209.48,17.53]
[1756894252102,53.7422797,209.49,209.48,17.53]
[1756894252709,54.74660284,209.49,209.48,0.03]
[1756894252918,0.28432314,209.48,209.47,0.03]
[1756894253126,7.92473424,209.48,209.47,0.03]
[1756894253520,8.64473424,209.48,209.47,0.03]
[1756894253697,8.64473424,209.48,209.45,0.03]
[1756894253698,39.59559401,209.46,209.45,0.03]
[1756894254026,42.4622797,209.46,209.45,0.03]
[1756894254229,42.74660284,209.46,209.45,0.03]
[1756894254411,42.74660284,209.46,209.45,0.7]
[1756894254597,42.74660284,209.46,209.45,0.03]
[1756894255101,47.52078406,209.46,209.45,0.03]
[1756894259419,16.74660284,209.46,209.45,18.2]
[1756894259624,13.87991715,209.46,209.45,18.2]
[1756894259922,16.74660284,209.46,209.45,18.2]
[1756894261201,2.86668569,209.46,209.45,18.2]
[1756894262019,2.86668569,209.46,209.45,17.53]
[1756894262223,2.86668569,209.46,209.45,18.2]
[1756894265304,7.64086691,209.46,209.45,18.2]
[1756894265831,21.23646092,209.46,209.45,17.53]
[1756894266211,21.23646092,209.46,209.45,0.03]
[1756894266418,59.23646092,209.46,209.45,0.03]
[1756894267316,58.51646092,209.46,209.45,0.03]
[1756894269827,58.80078406,209.46,209.45,0.03]
[1756894274631,58.80078406,209.46,209.45,0.7]
[1756894274926,58.80078406,209.46,209.45,0.03]
[1756894275141,54.02660284,209.46,209.45,0.7]
[1756894275315,58.80078406,209.46,209.45,0.7]
[1756894275714,58.80078406,209.46,209.45,0.03]
[1756894280033,2.86668569,209.46,209.45,18.2]
[1756894280212,11.93354897,209.5,209.45,18.2]
[1756894280213,14.3544104,209.52,209.5,17.5]
[1756894280410,4.77213075,209.55,209.53,17.5]
[1756894280635,2.86668569,209.54,209.53,17.5]
[1756894281044,7.63904418,209.54,209.53,17.5]
[1756894281621,13.59559401,209.53,209.51,17.5]
[1756894281820,2.86668569,209.52,209.51,17.5]
[1756894282041,13.59559401,209.51,209.49,17.5]
[1756894282219,2.86668569,209.5,209.49,17.5]
[1756894282930,7.63995537,209.5,209.49,17.5]
[1756894283420,21.51987252,209.5,209.49,17.5]
[1756894284146,21.57987252,209.5,209.49,17.5]
[1756894285942,7.98427851,209.5,209.49,18.17]
[1756894291351,3.21100883,209.5,209.49,18.17]
[1756894291544,2.92668569,209.5,209.49,18.17]
[1756894291752,0.06,209.5,209.49,18.17]
[1756894292636,2.92668569,209.5,209.49,18.17]
[1756894293467,9.31627817,209.5,209.49,17.5]
[1756894294155,9.31627817,209.5,209.49,18.17]
[1756894294654,4.54300849,209.5,209.49,18.17]
[1756894297351,9.60060131,209.5,209.49,17.5]
[1756894297566,13.87991715,209.49,209.47,17.5]
[1756894297858,18.36292564,209.48,209.47,17.5]
[1756894298861,23.13665105,209.48,209.47,17.5]
[1756894299368,4.48300849,209.48,209.47,18.17]
[1756894301258,9.2567339,209.48,209.47,17.5]
[1756894301465,50.89559401,209.5,209.47,18.17]
[1756894301664,55.66886369,209.5,209.49,17.5]
[1756894302934,60.15187218,209.5,209.49,17.5]
[1756894303663,9.60060131,209.5,209.49,18.17]
[1756894303868,4.82733163,209.5,209.49,18.17]
[1756894305768,4.54300849,209.5,209.49,18.17]
[1756894305942,0.06,209.5,209.49,18.17]
[1756894306956,4.54300849,209.5,209.49,18.17]
[1756894309784,0.06,209.5,209.49,18.17]
[1756894310572,0.06,209.5,209.49,27.42650603]
[1756894311255,0.06,209.5,209.49,22.65300849]
[1756894311845,0.06,209.5,209.49,27.42650603]
[1756894321085,0.06,209.5,209.49,17.5]
[1756894321388,0.06,209.5,209.49,55.39]
[1756894322090,0.06,209.5,209.49,60.16349754]
[1756894322384,0.06,209.5,209.49,17.5]
[1756894322385,5.22300849,209.5,209.49,17.5]
[1756894322681,9.99627817,209.5,209.49,17.5]
[1756894323387,4.54300849,209.5,209.49,17.5]
[1756894323558,0.06,209.5,209.49,17.5]
[1756894323759,0.06,209.5,209.49,27.42650603]
[1756894323974,0.06,209.5,209.49,17.5]
[1756894326487,0.06,209.5,209.49,22.65300849]
[1756894326866,0.06,209.5,209.49,27.42650603]
[1756894328867,0.06,209.5,209.49,22.94349754]
[1756894329174,0.06,209.5,209.49,17.5]
[1756894330491,0.06,209.5,209.49,22.27349754]
[1756894331595,0.06,209.5,209.49,17.5]
[1756894332998,0.06,209.5,209.49,27.43650603]
[1756894333892,0.06,209.5,209.49,64.63650603]
[1756894334378,0.06,209.5,209.49,90.63650603]
[1756894334571,0.06,209.5,209.49,92.54914619]
[1756894337601,1e-08,209.5,209.49,92.54914619]
[1756894339298,1e-08,209.5,209.49,185.8447402]
[1756894341504,0.06,209.55,209.54,17.5]
[1756894341806,1e-08,209.55,209.54,59.18300849]
[1756894342198,1e-08,209.55,209.54,61.77510008]
[1756894342510,1e-08,209.55,209.54,57.29209159]
[1756894342682,1e-08,209.55,209.54,61.77510008]
[1756894342888,1e-08,209.55,209.54,66.54745857]
[1756894343711,1e-08,209.55,209.54,65.86745857]
[1756894344011,1e-08,209.55,209.54,66.54745857]
[1756894344380,1e-08,209.55,209.54,65.84745857]
[1756894344799,1e-08,209.55,209.54,63.93536698]
[1756894346706,1e-08,209.55,209.54,26.75536698]
[1756894346914,1e-08,209.55,209.54,63.93536698]
[1756894348810,1e-08,209.55,209.54,59.45235849]
[1756894352421,1e-08,209.55,209.54,63.93536698]
[1756894352715,1e-08,209.55,209.54,17.5]
[1756894352922,1e-08,209.55,209.54,54.68]
[1756894354498,1e-08,209.55,209.54,59.45235849]
[1756894355706,1e-08,209.55,209.54,62.99820635]
[1756894357207,1e-08,209.55,209.54,64.91048077]
[1756894357637,1e-08,209.55,209.54,24.86463291]
[1756894357915,1e-08,209.55,209.54,64.91048077]
[1756894358333,1e-08,209.55,209.54,27.73048077]
[1756894358644,1e-08,209.55,209.54,60.11235849]
[1756894359435,1e-08,209.55,209.54,59.43235849]
[1756894360615,1e-08,209.55,209.54,60.11235849]
[1756894366348,1e-08,209.55,209.54,59.43235849]
[1756894367140,1e-08,209.55,209.54,60.14235849]
[1756894368246,1e-08,209.55,209.54,59.43235849]
[1756894369018,1e-08,209.55,209.54,60.14235849]
[1756894369529,1e-08,209.55,209.54,59.43235849]
[1756894369911,1e-08,209.55,209.54,60.14235849]
[1756894371722,1e-08,209.55,209.54,63.00820635]
[1756894372518,1e-08,209.55,209.54,63.03820635]
[1756894374245,1e-08,209.55,209.54,60.17235849]
[1756894377843,1e-08,209.55,209.54,63.03820635]
[1756894380339,1e-08,209.55,209.54,59.46235849]
[1756894380925,1e-08,209.55,209.54,60.17235849]
[1756894381656,1e-08,209.55,209.54,63.03820635]
[1756894382032,1e-08,209.55,209.54,64.95029794]
[1756894383047,1e-08,209.55,209.54,158.24589195]
[1756894383951,0.06,209.6,209.59,17.5]
[1756894384240,0.06,209.6,209.59,57.50584786]
[1756894384466,0.06,209.6,209.59,58.21584786]
[1756894384648,0.06,209.6,209.59,64.89879391]
[1756894390156,0.06,209.6,209.59,144.59879391]
[1756894390660,0.06,209.6,209.59,130.59294605]
[1756894390954,0.06,209.6,209.59,169.86879391]
[1756894391964,0.06,209.6,209.59,132.74879391]
[1756894392136,0.06,209.6,209.59,169.86879391]
[1756894392538,1e-08,209.6,209.59,142.67706786]
[1756894392745,1e-08,209.6,209.59,144.58870255]
[1756894392936,1e-08,209.6,209.59,158.18429656]
[1756894399248,1e-08,209.6,209.59,120.34429656]
[1756894399448,1e-08,209.6,209.59,157.44429656]
[1756894400361,1e-08,209.6,209.59,158.16429656]
[1756894401455,1e-08,209.6,209.59,106.74870255]
[1756894401849,1e-08,209.6,209.59,143.84870255]
[1756894402042,1e-08,209.6,209.59,169.84870255]
[1756894402360,1e-08,209.6,209.59,141.93706786]
[1756894402361,0.70000001,209.6,209.59,141.93706786]
[1756894402545,1e-08,209.6,209.59,141.93706786]
[1756894403337,0.70000001,209.6,209.59,139.07122]
[1756894403741,0.70000001,209.6,209.59,85.37122]
[1756894405255,1e-08,209.6,209.59,85.37122]
[1756894405574,0.70000001,209.6,209.59,85.37122]
[1756894406872,1e-08,209.6,209.59,85.37122]
[1756894408141,1e-08,209.6,209.59,88.23706786]
[1756894408347,1e-08,209.6,209.59,85.40122]
[1756894411763,1e-08,209.6,209.59,88.98706786]
[1756894412153,1e-08,209.6,209.59,90.89888528]
[1756894412572,1e-08,209.6,209.59,88.03303742]
[1756894412773,1e-08,209.6,209.59,90.89888528]
[1756894412952,1e-08,209.6,209.59,64.89888528]
[1756894413773,1e-08,209.6,209.59,144.59888528]
[1756894415160,0.06,209.63,209.62,46.36584786]
[1756894415368,0.06,209.63,209.62,83.44584786]
[1756894415561,0.06,209.63,209.62,85.77245621]
[1756894415767,0.06,209.63,209.62,87.6839082]
[1756894417877,0.06,209.64,209.62,92.45444536]
[1756894418080,0.06,209.64,209.63,5.19245621]
[1756894418384,0.06,209.65,209.63,5.19245621]
[1756894418578,0.06,209.65,209.64,59.77245621]
[1756894419069,0.06,209.65,209.64,61.68381686]
[1756894419274,0.06,209.67,209.64,61.68381686]
[1756894419463,0.06,209.67,209.65,5.19245621]
[1756894419666,0.06,209.67,209.65,8.66503568]
[1756894419868,0.06,209.67,209.65,13.43489019]
[1756894421387,0.76,209.66,209.65,8.24243398]
[1756894421588,0.06,209.66,209.65,45.32243398]
[1756894421785,0.06,209.66,209.65,49.79489019]
[1756894423164,0.06,209.66,209.65,8.24243398]
[1756894423469,0.06,209.66,209.65,45.32243398]
[1756894424186,0.06,209.66,209.65,50.20021928]
[1756894424387,0.06,209.66,209.65,54.67267549]
[1756894425369,0.06,209.66,209.65,56.58403614]
[1756894425872,0.06,209.66,209.65,52.11157993]
[1756894426267,0.06,209.66,209.65,52.11370736]
[1756894427290,0.06,209.66,209.65,52.09370736]
[1756894427664,0.72,209.66,209.65,10.15592206]
[1756894427884,0.72,209.66,209.65,47.21592206]
[1756894429273,0.06,209.66,209.65,47.89592206]
[1756894429683,0.06,209.66,209.65,52.36837827]
[1756894429886,0.06,209.66,209.65,47.21592206]
[1756894430883,0.06,209.66,209.65,43.74121516]
[1756894431788,0.06,209.66,209.65,48.4580474]
[1756894436091,0.06,209.66,209.65,53.61050361]
[1756894438889,0.06,209.66,209.65,11.3980474]
[1756894439193,0.06,209.66,209.65,48.4580474]
[1756894440690,0.72,209.66,209.65,43.68819289]
[1756894440892,0.06,209.66,209.65,43.68819289]
[1756894441501,0.06,209.66,209.65,38.97136065]
[1756894442079,0.06,209.66,209.65,39.65136065]
[1756894442377,0.06,209.66,209.65,48.21367137]
[1756894442793,0.06,209.66,209.65,43.74121516]
[1756894443002,0.06,209.66,209.65,48.21367137]
[1756894444099,0.06,209.66,209.65,48.24367137]
[1756894445383,0.06,209.66,209.65,43.77121516]
[1756894446496,0.06,209.66,209.65,48.92367137]
[1756894446698,0.06,209.66,209.65,48.24367137]
[1756894447101,0.06,209.66,209.65,48.92367137]
[1756894448199,0.72,209.66,209.65,43.77121516]
[1756894448789,0.06,209.66,209.65,43.77121516]
[1756894450309,0.72,209.66,209.65,38.98136065]
[1756894451208,0.06,209.66,209.65,44.43121516]
[1756894451599,0.06,209.66,209.65,48.90367137]
[1756894451798,0.06,209.66,209.65,44.43121516]
[1756894451998,0.06,209.66,209.65,43.75121516]
[1756894452515,5.24245621,209.66,209.65,38.98136065]
[1756894453623,5.24245621,209.66,209.65,0.03]
[1756894456517,0.06,209.66,209.65,0.03]
[1756894456819,0.06,209.66,209.65,1.94163468]
[1756894457011,0.06,209.66,209.65,2.61163468]
[1756894457206,0.06,209.66,209.65,1.94163468]
[1756894458114,0.06,209.66,209.65,43.75148919]
[1756894459409,0.06,209.66,209.65,44.42148919]
[1756894459607,0.06,209.66,209.65,43.75148919]
[1756894460016,0.06,209.66,209.65,38.98163468]
[1756894460593,0.06,209.66,209.65,43.85416632]
[1756894460802,5.24245621,209.66,209.65,43.83416632]
[1756894460998,5.24245621,209.66,209.65,37.05]
[1756894462038,0.06,209.66,209.65,37.05]
[1756894462912,0.06,209.66,209.65,41.81985451]
[1756894464316,0.06,209.66,209.65,42.48985451]
[1756894464695,0.06,209.66,209.65,47.02231072]
[1756894465091,0.06,209.66,209.65,46.35231072]
[1756894465726,0.06,209.66,209.65,47.02231072]
[1756894466098,0.06,209.66,209.65,46.35231072]
[1756894466297,0.06,209.66,209.65,41.58245621]
[1756894466813,0.06,209.66,209.65,46.35231072]
[1756894469432,0.06,209.66,209.65,47.02231072]
[1756894469616,0.06,209.66,209.65,51.49476693]
[1756894472322,1e-08,209.66,209.65,65.09036094]
[1756894472504,0.06,209.69,209.68,43.5]
[1756894472706,0.06,209.69,209.68,84.99245621]
[1756894473010,0.06,209.69,209.68,85.66245621]
[1756894473326,1e-08,209.69,209.68,108.4996785]
[1756894475029,1e-08,209.69,209.68,94.90408449]
[1756894476208,1e-08,209.69,209.68,89.76162828]
[1756894476827,1e-08,209.69,209.68,26.74162828]
[1756894477111,1e-08,209.69,209.68,63.74162828]
[1756894477425,1e-08,209.69,209.68,26.74162828]
[1756894477631,0.71000001,209.69,209.68,63.74162828]
[1756894478538,1e-08,209.69,209.68,63.74162828]
[1756894478928,1e-08,209.69,209.68,59.26917207]
[1756894482332,1e-08,209.69,209.68,59.95917207]
[1756894482731,1e-08,209.69,209.68,59.26917207]
[1756894484045,2.86250612,209.69,209.68,59.26917207]
[1756894484625,3.53250612,209.69,209.68,54.5]
[1756894484962,3.53250612,209.69,209.68,37.0]
[1756894485133,3.53250612,209.69,209.68,17.5]
[1756894488043,2.86250612,209.69,209.68,17.5]
[1756894488250,0.67000001,209.69,209.68,17.5]
[1756894488430,3.53250612,209.69,209.68,17.5]